[Event "*** SCC Grand Prix: Titled Tuesday Blitz"]
[Site "Chess.com"]
[Date "2020.08.11"]
[Round "9"]
[White "Shield12"]
[Black "Azatic"]
[Result "0-1"]
[WhiteElo "2825"]
[BlackElo "2555"]
[TimeControl "180+1"]
[EndTime "11:47:06 PDT"]
[Termination "Azatic won by resignation"]

1. e4 {[%clk 0:03:00.9]} 1... c5 {[%clk 0:02:59.8]} 2. Nf3 {[%clk 0:03:01]} 2...
e6 {[%clk 0:03:00]} 3. d4 {[%clk 0:03:01]} 3... cxd4 {[%clk 0:03:00.9]} 4. Nxd4
{[%clk 0:03:01.9]} 4... a6 {[%clk 0:03:01.4]} 5. c4 {[%clk 0:03:02.2]} 5... Qc7
{[%clk 0:03:01.6]} 6. Nc3 {[%clk 0:03:02.7]} 6... Nf6 {[%clk 0:03:02.1]} 7. a3
{[%clk 0:03:03.3]} 7... b6 {[%clk 0:03:01.1]} 8. Be3 {[%clk 0:03:03.6]} 8... Bb7
{[%clk 0:02:59.3]} 9. f3 {[%clk 0:03:04.2]} 9... Nc6 {[%clk 0:02:59]} 10. Rc1
{[%clk 0:03:03.4]} 10... Nxd4 {[%clk 0:02:58.6]} 11. Bxd4 {[%clk 0:03:03]} 11...
Bd6 {[%clk 0:02:54.6]} 12. g3 {[%clk 0:02:59.7]} 12... h5 {[%clk 0:02:45.3]} 13.
Qe2 {[%clk 0:02:54]} 13... Be5 {[%clk 0:01:44.7]} 14. Bxe5 {[%clk 0:02:45.8]}
14... Qxe5 {[%clk 0:01:45.6]} 15. Bg2 {[%clk 0:02:42.3]} 15... d6 {[%clk
0:01:12]} 16. f4 {[%clk 0:02:30.9]} 16... Qc5 {[%clk 0:01:10.6]} 17. e5 {[%clk
0:02:28.1]} 17... Bxg2 {[%clk 0:01:11.5]} 18. Qxg2 {[%clk 0:02:28.2]} 18... Qe3+
{[%clk 0:01:11.6]} 19. Kd1 {[%clk 0:02:13.9]} 19... Qd3+ {[%clk 0:01:11.4]} 20.
Qd2 {[%clk 0:02:05]} 20... Qf3+ {[%clk 0:01:01.2]} 21. Kc2 {[%clk 0:02:02.6]}
21... dxe5 {[%clk 0:01:01.3]} 22. fxe5 {[%clk 0:02:02.3]} 22... Rd8 {[%clk
0:01:01]} 23. Qf4 {[%clk 0:01:55.1]} 23... Qd3+ {[%clk 0:00:26.2]} 24. Kb3
{[%clk 0:01:53.1]} 24... Rd4 {[%clk 0:00:26.2]} 25. Qf1 {[%clk 0:01:49]} 25...
Qxf1 {[%clk 0:00:18]} 26. Rcxf1 {[%clk 0:01:47.1]} 26... Ng4 {[%clk 0:00:18.9]}
27. Re1 {[%clk 0:01:47.4]} 27... Ke7 {[%clk 0:00:18.4]} 28. h3 {[%clk
0:01:44.9]} 28... Nh6 {[%clk 0:00:16]} 29. Re4 {[%clk 0:01:40.2]} 29... Rhd8
{[%clk 0:00:14.9]} 30. Rhe1 {[%clk 0:01:25.2]} 30... Nf5 {[%clk 0:00:14.7]} 31.
g4 {[%clk 0:01:25.2]} 31... hxg4 {[%clk 0:00:14.6]} 32. hxg4 {[%clk 0:01:26]}
32... Ng3 {[%clk 0:00:15.1]} 33. Rxd4 {[%clk 0:01:21.3]} 33... Rxd4 {[%clk
0:00:16]} 34. Rg1 {[%clk 0:01:22]} 34... Ne4 {[%clk 0:00:15]} 35. Nxe4 {[%clk
0:00:53.4]} 35... Rxe4 {[%clk 0:00:15.9]} 36. Kc3 {[%clk 0:00:53.7]} 36... Rxe5
{[%clk 0:00:15.9]} 37. Kd4 {[%clk 0:00:54]} 37... Re2 {[%clk 0:00:16.1]} 38. b4
{[%clk 0:00:53.3]} 38... Ra2 {[%clk 0:00:16.2]} 39. Rg3 {[%clk 0:00:52.9]} 39...
Kd6 {[%clk 0:00:16.7]} 40. Rd3 {[%clk 0:00:47.5]} 40... f6 {[%clk 0:00:14.4]}
41. Ke4+ {[%clk 0:00:43.3]} 41... Kc6 {[%clk 0:00:14.8]} 42. g5 {[%clk 0:00:39]}
42... Rg2 {[%clk 0:00:13.2]} 43. gxf6 {[%clk 0:00:38.8]} 43... gxf6 {[%clk
0:00:14.1]} 44. Rf3 {[%clk 0:00:37.7]} 44... Rg4+ {[%clk 0:00:13.9]} 45. Kd3
{[%clk 0:00:37]} 45... f5 {[%clk 0:00:13.8]} 46. Rh3 {[%clk 0:00:36.3]} 46...
Kd6 {[%clk 0:00:11.6]} 47. a4 {[%clk 0:00:33.7]} 47... a5 {[%clk 0:00:09.3]} 48.
bxa5 {[%clk 0:00:31.9]} 48... bxa5 {[%clk 0:00:10.2]} 49. Rh8 {[%clk 0:00:32.7]}
49... Rg3+ {[%clk 0:00:09.9]} 50. Kc2 {[%clk 0:00:28.1]} 50... Ra3 {[%clk
0:00:06.3]} 51. Ra8 {[%clk 0:00:27.8]} 51... Rxa4 {[%clk 0:00:06.3]} 52. Kb3
{[%clk 0:00:28.7]} 52... Ra1 {[%clk 0:00:05.3]} 53. Kb2 {[%clk 0:00:29.1]} 53...
Ra4 {[%clk 0:00:05.8]} 54. Kb3 {[%clk 0:00:29.4]} 54... Rb4+ {[%clk 0:00:06.1]}
55. Kc3 {[%clk 0:00:29.8]} 55... Rb1 {[%clk 0:00:06.1]} 56. Rxa5 {[%clk
0:00:29.9]} 56... Rc1+ {[%clk 0:00:06.3]} 57. Kd3 {[%clk 0:00:27.7]} 57... e5
{[%clk 0:00:06.6]} 58. Ra6+ {[%clk 0:00:26.3]} 58... Ke7 {[%clk 0:00:07]} 59.
Rh6 {[%clk 0:00:23.4]} 59... Rd1+ {[%clk 0:00:06.5]} 60. Ke2 {[%clk 0:00:23.1]}
60... Rc1 {[%clk 0:00:06.8]} 61. Kd3 {[%clk 0:00:23.6]} 61... e4+ {[%clk
0:00:06.1]} 62. Kd4 {[%clk 0:00:23.4]} 62... Rd1+ {[%clk 0:00:06.6]} 63. Ke5
{[%clk 0:00:22.9]} 63... e3 {[%clk 0:00:06.9]} 64. Re6+ {[%clk 0:00:18.3]} 64...
Kd7 {[%clk 0:00:04.8]} 65. Kf6 {[%clk 0:00:14.6]} 65... f4 {[%clk 0:00:04.2]}
66. Re4 {[%clk 0:00:14.7]} 66... f3 {[%clk 0:00:04.3]} 67. Rxe3 {[%clk 0:00:15]}
67... f2 {[%clk 0:00:04.7]} 68. Rf3 {[%clk 0:00:15.4]} 68... f1=Q {[%clk
0:00:05.2]} 69. Rxf1 {[%clk 0:00:16.3]} 69... Rxf1+ {[%clk 0:00:06.1]} 70. Ke5
{[%clk 0:00:16.7]} 70... Rd1 {[%clk 0:00:06.6]} 0-1

[Event "*** SCC Grand Prix: Titled Tuesday Blitz"]
[Site "Chess.com"]
[Date "2020.08.11"]
[Round "9"]
[White "lider34"]
[Black "czasnaszachy"]
[Result "1-0"]
[WhiteElo "2379"]
[BlackElo "2223"]
[TimeControl "180+1"]
[EndTime "11:47:06 PDT"]
[Termination "lider34 won on time"]

1. e4 {[%clk 0:03:00.9]} 1... c5 {[%clk 0:02:58.6]} 2. c3 {[%clk 0:02:59.7]}
2... d5 {[%clk 0:02:57]} 3. exd5 {[%clk 0:02:59.4]} 3... Qxd5 {[%clk 0:02:57.9]}
4. d4 {[%clk 0:02:59.8]} 4... Nf6 {[%clk 0:02:57.7]} 5. Nf3 {[%clk 0:02:59.5]}
5... Bg4 {[%clk 0:02:57.7]} 6. Be2 {[%clk 0:02:58.5]} 6... e6 {[%clk 0:02:56.6]}
7. O-O {[%clk 0:02:56.9]} 7... Be7 {[%clk 0:02:56.5]} 8. h3 {[%clk 0:02:56.3]}
8... Bh5 {[%clk 0:02:56]} 9. Be3 {[%clk 0:02:56.1]} 9... cxd4 {[%clk 0:02:54.5]}
10. Nxd4 {[%clk 0:02:55.9]} 10... Bxe2 {[%clk 0:02:50.6]} 11. Qxe2 {[%clk
0:02:56.8]} 11... O-O {[%clk 0:02:48.5]} 12. Rd1 {[%clk 0:02:54.7]} 12... Qa5
{[%clk 0:02:43.8]} 13. Nd2 {[%clk 0:02:52.8]} 13... Nc6 {[%clk 0:02:37]} 14.
N2b3 {[%clk 0:02:46.4]} 14... Qc7 {[%clk 0:02:27.8]} 15. Nxc6 {[%clk 0:02:44.3]}
15... Qxc6 {[%clk 0:02:23.2]} 16. Bd4 {[%clk 0:02:43.8]} 16... b6 {[%clk
0:02:13.3]} 17. Rd2 {[%clk 0:02:38.6]} 17... Rfd8 {[%clk 0:02:12.2]} 18. Rad1
{[%clk 0:02:37]} 18... Nd5 {[%clk 0:02:09.9]} 19. Qe4 {[%clk 0:02:24.4]} 19...
Qc7 {[%clk 0:02:01.8]} 20. Rd3 {[%clk 0:02:15.1]} 20... Qf4 {[%clk 0:01:58.4]}
21. Qxf4 {[%clk 0:02:00]} 21... Nxf4 {[%clk 0:01:57.5]} 22. R3d2 {[%clk
0:02:00.4]} 22... f6 {[%clk 0:01:45.7]} 23. Be3 {[%clk 0:01:52.7]} 23... Nd5
{[%clk 0:01:39.4]} 24. Nd4 {[%clk 0:01:49]} 24... Nxe3 {[%clk 0:01:39.1]} 25.
fxe3 {[%clk 0:01:47.8]} 25... Kf7 {[%clk 0:01:39]} 26. Nc6 {[%clk 0:01:46.9]}
26... Rxd2 {[%clk 0:01:35.7]} 27. Rxd2 {[%clk 0:01:46.7]} 27... Ke8 {[%clk
0:01:25.8]} 28. Kf2 {[%clk 0:01:38.4]} 28... a5 {[%clk 0:01:25.4]} 29. a4 {[%clk
0:01:32.3]} 29... Rc8 {[%clk 0:01:23]} 30. Nd4 {[%clk 0:01:25.6]} 30... e5
{[%clk 0:01:14.4]} 31. Nb5 {[%clk 0:01:18.6]} 31... Rc4 {[%clk 0:00:58.8]} 32.
b3 {[%clk 0:01:17]} 32... Rc6 {[%clk 0:00:57.9]} 33. Rd5 {[%clk 0:01:15]} 33...
Kf7 {[%clk 0:00:54.1]} 34. Rd7 {[%clk 0:01:11.8]} 34... Ke6 {[%clk 0:00:52.7]}
35. Rb7 {[%clk 0:01:09.6]} 35... g6 {[%clk 0:00:49]} 36. Ke2 {[%clk 0:01:03.1]}
36... h6 {[%clk 0:00:46.5]} 37. Kd3 {[%clk 0:01:00.6]} 37... f5 {[%clk
0:00:44.2]} 38. Kc2 {[%clk 0:00:53.5]} 38... Bg5 {[%clk 0:00:40.7]} 39. Kd3
{[%clk 0:00:48.7]} 39... Bf6 {[%clk 0:00:35]} 40. Na7 {[%clk 0:00:42.8]} 40...
Rd6+ {[%clk 0:00:34.1]} 41. Kc2 {[%clk 0:00:41.2]} 41... e4 {[%clk 0:00:33.6]}
42. Nc8 {[%clk 0:00:39.6]} 42... Rd3 {[%clk 0:00:24.6]} 43. Rxb6+ {[%clk
0:00:38.3]} 43... Kf7 {[%clk 0:00:24.3]} 44. Nd6+ {[%clk 0:00:35.7]} 44... Ke7
{[%clk 0:00:19]} 45. Nb5 {[%clk 0:00:33.4]} 45... Rxe3 {[%clk 0:00:18.5]} 46. b4
{[%clk 0:00:30.8]} 46... axb4 {[%clk 0:00:17.4]} 47. cxb4 {[%clk 0:00:31.2]}
47... Re2+ {[%clk 0:00:18.1]} 48. Kb3 {[%clk 0:00:30.3]} 48... Rxg2 {[%clk
0:00:18]} 49. a5 {[%clk 0:00:28.8]} 49... Rb2+ {[%clk 0:00:17.3]} 50. Kc4 {[%clk
0:00:27.3]} 50... e3 {[%clk 0:00:16.8]} 51. Rb7+ {[%clk 0:00:24.2]} 51... Ke6
{[%clk 0:00:14.7]} 52. Nc7+ {[%clk 0:00:23.1]} 52... Ke5 {[%clk 0:00:11.6]} 53.
Rb8 {[%clk 0:00:22.9]} 53... e2 {[%clk 0:00:05.8]} 54. Re8+ {[%clk 0:00:22.2]}
54... Kd6 {[%clk 0:00:05.6]} 55. Nd5 {[%clk 0:00:21]} 55... Be5 {[%clk
0:00:04.9]} 56. Rd8+ {[%clk 0:00:16.5]} 56... Ke6 {[%clk 0:00:04.5]} 57. Re8+
{[%clk 0:00:16.3]} 57... Kd6 {[%clk 0:00:04.4]} 58. Rd8+ {[%clk 0:00:16]} 58...
Kc6 {[%clk 0:00:04.8]} 59. b5+ {[%clk 0:00:11.6]} 59... Kb7 {[%clk 0:00:03.5]}
60. a6+ {[%clk 0:00:10]} 60... Ka7 {[%clk 0:00:03.1]} 61. Rd7+ {[%clk
0:00:10.9]} 61... Ka8 {[%clk 0:00:02.7]} 62. b6 {[%clk 0:00:10.1]} 62... Rxb6
{[%clk 0:00:01]} 63. Nxb6+ {[%clk 0:00:07.7]} 63... Kb8 {[%clk 0:00:01.3]} 64.
Rc7 {[%clk 0:00:02.5]} 1-0

[Event "*** SCC Grand Prix: Titled Tuesday Blitz"]
[Site "Chess.com"]
[Date "2020.08.11"]
[Round "9"]
[White "Koksik_13"]
[Black "seorobert1971"]
[Result "1-0"]
[WhiteElo "2647"]
[BlackElo "2731"]
[TimeControl "180+1"]
[EndTime "11:47:08 PDT"]
[Termination "Koksik_13 won by resignation"]

1. d4 {[%clk 0:03:00.7]} 1... Nf6 {[%clk 0:02:59.9]} 2. Nc3 {[%clk 0:03:00.7]}
2... d5 {[%clk 0:02:58.5]} 3. Bf4 {[%clk 0:03:00.6]} 3... a6 {[%clk 0:02:57.9]}
4. e3 {[%clk 0:03:00.7]} 4... e6 {[%clk 0:02:57.9]} 5. Nf3 {[%clk 0:03:01.2]}
5... b5 {[%clk 0:02:57.2]} 6. a3 {[%clk 0:02:58.3]} 6... c5 {[%clk 0:02:56.2]}
7. dxc5 {[%clk 0:02:58.5]} 7... Bxc5 {[%clk 0:02:56.1]} 8. Bd3 {[%clk
0:02:59.2]} 8... Nbd7 {[%clk 0:02:55.5]} 9. Qe2 {[%clk 0:02:56.8]} 9... Bb7
{[%clk 0:02:53.8]} 10. Rd1 {[%clk 0:02:55]} 10... Qb6 {[%clk 0:02:44.9]} 11. O-O
{[%clk 0:02:51.9]} 11... O-O {[%clk 0:02:41.9]} 12. e4 {[%clk 0:02:50.8]} 12...
dxe4 {[%clk 0:02:41.2]} 13. Nxe4 {[%clk 0:02:51.7]} 13... Nxe4 {[%clk
0:02:40.4]} 14. Bxe4 {[%clk 0:02:52.6]} 14... Nf6 {[%clk 0:02:33]} 15. Bxb7
{[%clk 0:02:47.2]} 15... Qxb7 {[%clk 0:02:33]} 16. Be5 {[%clk 0:02:39.7]} 16...
Be7 {[%clk 0:02:32.2]} 17. Rd3 {[%clk 0:02:34.9]} 17... Rfd8 {[%clk 0:02:30.5]}
18. Rfd1 {[%clk 0:02:35.4]} 18... Rxd3 {[%clk 0:02:29]} 19. Qxd3 {[%clk
0:02:36.3]} 19... h6 {[%clk 0:02:27.8]} 20. Qb3 {[%clk 0:02:14.5]} 20... Rc8
{[%clk 0:02:25.7]} 21. h3 {[%clk 0:02:10.2]} 21... Qc6 {[%clk 0:02:23.9]} 22. c3
{[%clk 0:02:01.9]} 22... Nd5 {[%clk 0:02:19.4]} 23. Qc2 {[%clk 0:01:57.5]} 23...
Bf8 {[%clk 0:02:17.6]} 24. Qe4 {[%clk 0:01:51.5]} 24... Qc4 {[%clk 0:02:09.8]}
25. Rd4 {[%clk 0:01:50.7]} 25... Qa2 {[%clk 0:02:06.3]} 26. Qg4 {[%clk
0:01:45.3]} 26... Qxb2 {[%clk 0:01:58.4]} 27. Rxd5 {[%clk 0:01:38.7]} 27... Rc4
{[%clk 0:01:43.6]} 28. Rd4 {[%clk 0:01:35.4]} 28... Rxd4 {[%clk 0:01:36.2]} 29.
Bxd4 {[%clk 0:01:29.2]} 29... Qxa3 {[%clk 0:01:35.7]} 30. Ne5 {[%clk 0:01:29.2]}
30... Qe7 {[%clk 0:01:31.1]} 31. Qf3 {[%clk 0:01:23.7]} 31... b4 {[%clk
0:01:22.9]} 32. cxb4 {[%clk 0:01:17]} 32... Qxb4 {[%clk 0:01:22.5]} 33. Qxf7+
{[%clk 0:01:16.6]} 33... Kh7 {[%clk 0:01:21.1]} 34. Qg6+ {[%clk 0:01:13.1]}
34... Kg8 {[%clk 0:01:18.9]} 35. Qxe6+ {[%clk 0:01:12.9]} 35... Kh7 {[%clk
0:01:19]} 36. Qf5+ {[%clk 0:01:09.1]} 36... Kg8 {[%clk 0:01:19.1]} 37. Qe4
{[%clk 0:00:45.8]} 37... Bd6 {[%clk 0:01:05.5]} 38. g3 {[%clk 0:00:39.8]} 38...
a5 {[%clk 0:01:01.1]} 39. Nc6 {[%clk 0:00:26.5]} 39... Qc4 {[%clk 0:00:46.3]}
40. Qg4 {[%clk 0:00:17.9]} 40... Bf8 {[%clk 0:00:40.7]} 41. Ne7+ {[%clk
0:00:17.2]} 41... Kf7 {[%clk 0:00:39.7]} 42. Nf5 {[%clk 0:00:17]} 42... a4
{[%clk 0:00:34.3]} 43. Qf4 {[%clk 0:00:11.1]} 43... Kg8 {[%clk 0:00:31.1]} 44.
Qe5 {[%clk 0:00:07.6]} 44... Qc1+ {[%clk 0:00:21.1]} 45. Kh2 {[%clk 0:00:06.8]}
45... Qg5 {[%clk 0:00:20.3]} 46. h4 {[%clk 0:00:06.2]} 46... Qg6 {[%clk
0:00:19.6]} 47. Ne7+ {[%clk 0:00:05.4]} 47... Bxe7 {[%clk 0:00:19.6]} 48. Qxe7
{[%clk 0:00:06.3]} 48... h5 {[%clk 0:00:18.2]} 49. Qb4 {[%clk 0:00:05.1]} 49...
Qc6 {[%clk 0:00:16.2]} 50. Qc3 {[%clk 0:00:03.8]} 50... Qd7 {[%clk 0:00:07.7]}
51. Qa1 {[%clk 0:00:03.9]} 51... Kh7 {[%clk 0:00:06.3]} 52. Bxg7 {[%clk
0:00:04.2]} 52... Qxg7 {[%clk 0:00:06.3]} 53. Qxa4 {[%clk 0:00:04.8]} 53... Qf6
{[%clk 0:00:06.6]} 54. Qf4 {[%clk 0:00:05.5]} 54... Qxf4 {[%clk 0:00:05.3]} 55.
gxf4 {[%clk 0:00:05.8]} 55... Kg6 {[%clk 0:00:06.2]} 56. Kg3 {[%clk 0:00:06.3]}
56... Kf6 {[%clk 0:00:05.7]} 57. Kf3 {[%clk 0:00:05.7]} 57... Kf5 {[%clk
0:00:06]} 58. Ke3 {[%clk 0:00:05.2]} 58... Kg4 {[%clk 0:00:06.2]} 59. Ke4 {[%clk
0:00:05.7]} 59... Kxh4 {[%clk 0:00:06.5]} 60. Kf3 {[%clk 0:00:06.3]} 1-0

[Event "*** SCC Grand Prix: Titled Tuesday Blitz"]
[Site "Chess.com"]
[Date "2020.08.11"]
[Round "9"]
[White "goldihouse"]
[Black "KarpovVadim"]
[Result "0-1"]
[WhiteElo "2440"]
[BlackElo "2314"]
[TimeControl "180+1"]
[EndTime "11:47:13 PDT"]
[Termination "KarpovVadim won on time"]

1. c4 {[%clk 0:03:00.9]} 1... e6 {[%clk 0:02:58.7]} 2. g3 {[%clk 0:03:01.2]}
2... d5 {[%clk 0:02:58.8]} 3. Bg2 {[%clk 0:03:02.1]} 3... Nf6 {[%clk 0:02:58.2]}
4. Nf3 {[%clk 0:03:03]} 4... Be7 {[%clk 0:02:58.5]} 5. O-O {[%clk 0:03:03.4]}
5... O-O {[%clk 0:02:58.8]} 6. b3 {[%clk 0:03:04.3]} 6... c6 {[%clk 0:02:59.3]}
7. Bb2 {[%clk 0:03:04.4]} 7... b6 {[%clk 0:02:59.2]} 8. Qc2 {[%clk 0:03:05.3]}
8... Bb7 {[%clk 0:02:59.4]} 9. d3 {[%clk 0:03:06.2]} 9... Nbd7 {[%clk
0:02:58.9]} 10. Nbd2 {[%clk 0:03:06.7]} 10... Rc8 {[%clk 0:02:59.1]} 11. e4
{[%clk 0:03:07.6]} 11... dxe4 {[%clk 0:02:52.9]} 12. dxe4 {[%clk 0:03:08.5]}
12... Nc5 {[%clk 0:02:52.9]} 13. e5 {[%clk 0:03:06.7]} 13... Nfd7 {[%clk
0:02:45.6]} 14. Rad1 {[%clk 0:03:03]} 14... a5 {[%clk 0:02:42.2]} 15. Ne4 {[%clk
0:02:56.8]} 15... Nxe4 {[%clk 0:02:40.4]} 16. Qxe4 {[%clk 0:02:57.7]} 16... Qc7
{[%clk 0:02:39.4]} 17. Qg4 {[%clk 0:02:41.3]} 17... Rfd8 {[%clk 0:02:38.7]} 18.
h4 {[%clk 0:02:34.2]} 18... Nf8 {[%clk 0:02:35.3]} 19. h5 {[%clk 0:02:34.6]}
19... Rxd1 {[%clk 0:02:34.3]} 20. Rxd1 {[%clk 0:02:35.4]} 20... Rd8 {[%clk
0:02:34.2]} 21. Re1 {[%clk 0:02:35.6]} 21... h6 {[%clk 0:02:24.7]} 22. Bc1
{[%clk 0:02:35.1]} 22... Kh8 {[%clk 0:02:23.9]} 23. Qf4 {[%clk 0:02:27.8]} 23...
Bb4 {[%clk 0:02:22.8]} 24. Re2 {[%clk 0:02:25.8]} 24... Qe7 {[%clk 0:02:21.9]}
25. Be3 {[%clk 0:02:19.5]} 25... Nd7 {[%clk 0:02:04.9]} 26. Nh2 {[%clk
0:02:11.9]} 26... Bc5 {[%clk 0:02:01.8]} 27. Rd2 {[%clk 0:02:07.2]} 27... Bxe3
{[%clk 0:01:59.2]} 28. Qxe3 {[%clk 0:02:08.1]} 28... Nc5 {[%clk 0:01:58.8]} 29.
Ng4 {[%clk 0:02:04]} 29... Rxd2 {[%clk 0:01:56.3]} 30. Qxd2 {[%clk 0:02:04.9]}
30... Qd7 {[%clk 0:01:55.4]} 31. Qf4 {[%clk 0:02:04.9]} 31... Kg8 {[%clk
0:01:48.8]} 32. Nh2 {[%clk 0:01:41.6]} 32... Qd1+ {[%clk 0:01:45.9]} 33. Nf1
{[%clk 0:01:37.7]} 33... Qxh5 {[%clk 0:01:46]} 34. Qd4 {[%clk 0:01:37.3]} 34...
Qg5 {[%clk 0:01:40.6]} 35. Nd2 {[%clk 0:01:29.5]} 35... Qe7 {[%clk 0:01:39]} 36.
Nf3 {[%clk 0:01:19.1]} 36... Kf8 {[%clk 0:01:33.9]} 37. a3 {[%clk 0:01:11.9]}
37... Qd7 {[%clk 0:01:31.9]} 38. b4 {[%clk 0:00:59.5]} 38... axb4 {[%clk
0:01:27.9]} 39. axb4 {[%clk 0:01:00.4]} 39... Qxd4 {[%clk 0:01:26.8]} 40. Nxd4
{[%clk 0:01:01.3]} 40... Nd3 {[%clk 0:01:26.1]} 41. b5 {[%clk 0:00:57.2]} 41...
Nxe5 {[%clk 0:01:21]} 42. bxc6 {[%clk 0:00:55.5]} 42... Bc8 {[%clk 0:01:20]} 43.
Bf1 {[%clk 0:00:44.5]} 43... Ke7 {[%clk 0:01:18.7]} 44. f4 {[%clk 0:00:44.3]}
44... Ng4 {[%clk 0:01:14.3]} 45. Nb5 {[%clk 0:00:43.7]} 45... Nf6 {[%clk
0:01:06.2]} 46. Bg2 {[%clk 0:00:36.3]} 46... Ne8 {[%clk 0:01:03.8]} 47. Kf2
{[%clk 0:00:20.6]} 47... Nd6 {[%clk 0:00:58.5]} 48. Na3 {[%clk 0:00:16.6]} 48...
Ba6 {[%clk 0:00:56.1]} 49. Bf1 {[%clk 0:00:14.3]} 49... Kd8 {[%clk 0:00:55.3]}
50. Ke3 {[%clk 0:00:13.4]} 50... Kc7 {[%clk 0:00:54.6]} 51. c5 {[%clk 0:00:13]}
51... Bxf1 {[%clk 0:00:50.6]} 52. cxd6+ {[%clk 0:00:12.7]} 52... Kxd6 {[%clk
0:00:51]} 53. Nc2 {[%clk 0:00:12.8]} 53... Kxc6 {[%clk 0:00:49.4]} 54. Nd4+
{[%clk 0:00:13.7]} 54... Kd6 {[%clk 0:00:48.5]} 55. Nf3 {[%clk 0:00:14]} 55...
f6 {[%clk 0:00:46.8]} 56. Nd2 {[%clk 0:00:14.5]} 56... Ba6 {[%clk 0:00:43.1]}
57. Ne4+ {[%clk 0:00:14.7]} 57... Kd5 {[%clk 0:00:41.7]} 58. Nc3+ {[%clk
0:00:14.8]} 58... Kc4 {[%clk 0:00:41.3]} 59. Ne4 {[%clk 0:00:15.2]} 59... Kd5
{[%clk 0:00:39.6]} 60. Nc3+ {[%clk 0:00:15.3]} 60... Kc6 {[%clk 0:00:40]} 61.
Ne4 {[%clk 0:00:15.1]} 61... b5 {[%clk 0:00:39.1]} 62. Kd4 {[%clk 0:00:16]}
62... b4 {[%clk 0:00:36.1]} 63. Nd2 {[%clk 0:00:16.9]} 63... Bb5 {[%clk
0:00:33.9]} 64. Nb3 {[%clk 0:00:17.1]} 64... h5 {[%clk 0:00:31.7]} 65. Na5+
{[%clk 0:00:16.6]} 65... Kd6 {[%clk 0:00:30.5]} 66. Nb3 {[%clk 0:00:17.5]} 66...
e5+ {[%clk 0:00:29.3]} 67. fxe5+ {[%clk 0:00:18.4]} 67... fxe5+ {[%clk
0:00:29.4]} 68. Ke3 {[%clk 0:00:19]} 68... Bc4 {[%clk 0:00:29]} 69. Nd2 {[%clk
0:00:19.9]} 69... Kd5 {[%clk 0:00:29.1]} 70. Ne4 {[%clk 0:00:19.8]} 70... b3
{[%clk 0:00:28.9]} 71. Nc3+ {[%clk 0:00:19.8]} 71... Kc5 {[%clk 0:00:29.2]} 72.
Ke4 {[%clk 0:00:20]} 72... Kb4 {[%clk 0:00:28.4]} 73. Nd1 {[%clk 0:00:20]} 73...
Be2 {[%clk 0:00:26.9]} 74. Nb2 {[%clk 0:00:19.2]} 74... Ka3 {[%clk 0:00:26.6]}
75. Ke3 {[%clk 0:00:19.1]} 75... Kxb2 {[%clk 0:00:26.2]} 76. Kxe2 {[%clk
0:00:20]} 76... Kc1 {[%clk 0:00:26.7]} 0-1